fUSD/lending_fUSD_20250916
["ID","MTS","AMOUNT","RATE_DAILY","PERIOD"]
[385788936,1758040280153,-518.33,0.00030683,6]
[385788937,1758040280163,-599.54224693,0.00030683,6]
[385788938,1758040280172,-797.56,0.00030683,2]
[385788939,1758040280181,-797.56,0.00030683,2]
[385788940,1758040280191,-542.41,0.00030683,6]
[385788941,1758040280200,-542.41,0.00030683,6]
[385788942,1758040280209,-542.41,0.00030683,6]
[385788943,1758040280218,-500.0,0.00030683,6]
[385788944,1758040280227,-512.58423863,0.00030683,6]
[385788945,1758040280236,-400.0,0.00030684,6]
[385788946,1758040280246,-400.0,0.00030684,6]
[385788947,1758040280255,-400.0,0.00030684,6]
[385788948,1758040280264,-396.18728821,0.00030684,6]
[385788949,1758040280273,-400.0,0.00030684,6]
[385788950,1758040280282,-400.0,0.00030684,6]
[385788951,1758040280291,-403.57994186,0.00030684,6]
[385788952,1758040280301,-400.0,0.00030684,5]
[385788953,1758040280310,-400.0,0.00030684,6]
[385788954,1758040280319,-400.0,0.00030684,6]
[385788955,1758040280328,-400.0,0.00030684,6]
[385788956,1758040280337,-400.0,0.00030684,6]
[385788957,1758040280347,-498.59851085,0.00030684,6]
[385788958,1758040280355,-400.0,0.00030684,2]
[385788959,1758040280365,-400.73062546,0.00030684,3]
[385788960,1758040280374,-400.0,0.00030684,6]
[385788961,1758040280383,-358.25748842,0.00030684,6]
[385788962,1758040280392,-400.0,0.00030684,6]
[385788963,1758040280402,-400.0,0.00030684,6]
[385788964,1758040280411,-457.73677107,0.00030684,6]
[385788965,1758040280420,-367.60813011,0.00030684,6]
[385788966,1758040280429,-400.0,0.00030684,6]
[385788967,1758040280439,-418.4472867,0.00030684,6]
[385788968,1758040280448,-400.0,0.00030684,6]
[385788969,1758040280457,-400.0,0.00030684,6]
[385788970,1758040280466,-400.0,0.00030684,6]
[385788971,1758040280475,-400.0,0.00030684,6]
[385788972,1758040280484,-400.0,0.00030684,6]
[385788973,1758040280494,-400.0,0.00030684,6]
[385788974,1758040280503,-400.0,0.00030684,6]
[385788975,1758040280512,-400.0,0.00030684,6]
[385788976,1758040280521,-400.0,0.00030684,6]
[385788977,1758040280531,-400.0,0.00030684,6]
[385788978,1758040280540,-406.66966906,0.00030684,6]
[385788979,1758040280550,-400.0,0.00030684,6]
[385788980,1758040280559,-400.0,0.00030684,6]
[385788981,1758040280568,-400.0,0.00030684,6]
[385788982,1758040280577,-223.74583041,0.00030684,6]
[385788983,1758040280587,-400.0,0.00030684,6]
[385788984,1758040280596,-400.0,0.00030684,6]
[385788985,1758040280605,-400.0,0.00030684,6]
[385788986,1758040280615,-400.0,0.00030684,6]
[385788987,1758040280626,-400.0,0.00030684,6]
[385788988,1758040280635,-400.0,0.00030684,6]
[385788989,1758040280645,-400.0,0.00030684,6]
[385788990,1758040280655,-400.0,0.00030684,6]
[385788991,1758040280665,-400.0,0.00030684,6]
[385788992,1758040280675,-400.0,0.00030684,6]
[385788993,1758040280684,-400.0,0.00030684,6]
[385788994,1758040280694,-400.0,0.00030684,6]
[385788995,1758040280703,-401.36632788,0.00030684,6]
[385788996,1758040280713,-400.0,0.00030684,6]
[385788997,1758040280723,-400.0,0.00030684,6]
[385788998,1758040280733,-400.0,0.00030684,6]
[385788999,1758040280743,-400.0,0.00030684,6]
[385789000,1758040280753,-400.0,0.00030684,6]
[385789001,1758040280764,-214.0,0.00030684,2]
[385789002,1758040280774,-214.0,0.00030684,2]
[385789003,1758040280784,-400.0,0.00030684,6]
[385789004,1758040280794,-214.0,0.00030684,2]
[385789005,1758040280806,-214.0,0.00030684,2]
[385789006,1758040280816,-214.0,0.00030684,2]
[385789007,1758040280826,-214.0,0.00030684,2]
[385789008,1758040280836,-214.0,0.00030684,2]
[385789009,1758040280847,-214.0,0.00030684,2]
[385789010,1758040280857,-214.0,0.00030684,2]
[385789011,1758040280867,-400.0,0.00030684,6]
[385789012,1758040280876,-400.92314101,0.00030684,6]
[385789013,1758040280886,-400.0,0.00030684,6]
[385789014,1758040280896,-400.0,0.00030684,6]
[385789015,1758040280907,-400.0,0.00030684,6]
[385789016,1758040280919,-400.0,0.00030684,6]
[385789017,1758040280930,-400.0,0.00030684,6]
[385789018,1758040280940,-400.0,0.00030684,6]
[385789019,1758040280951,-505.52486531,0.00030684,6]
[385789020,1758040280963,-400.0,0.00030684,6]
[385789021,1758040280974,-402.35660097,0.00030684,6]
[385789022,1758040280984,-400.0,0.00030684,6]
[385789023,1758040280994,-400.0,0.00030684,6]
[385789024,1758040281003,-400.0,0.00030684,6]
[385789025,1758040281015,-400.0,0.00030684,6]
[385789026,1758040281025,-400.0,0.00030684,6]
[385789027,1758040281035,-400.0,0.00030684,6]
[385789028,1758040281047,-400.0,0.00030684,6]
[385789029,1758040281059,-400.0,0.00030684,6]
[385789030,1758040281069,-400.0,0.00030684,6]
[385789031,1758040281079,-400.0,0.00030684,6]
[385789032,1758040281089,-405.94005768,0.00030684,6]
[385789033,1758040281098,-400.0,0.00030684,6]
[385789034,1758040281109,-400.0,0.00030684,6]
[385789035,1758040281123,-400.0,0.00030684,6]
[385789036,1758040281134,-530.7,0.00030684,6]
[385789037,1758040281144,-400.0,0.00030684,6]
[385789038,1758040281155,-400.0,0.00030684,6]
[385789039,1758040281165,-400.0,0.00030684,6]
[385789040,1758040281175,-400.0,0.00030684,6]
[385789041,1758040281185,-400.0,0.00030684,6]
[385789042,1758040281194,-400.0,0.00030684,6]
[385789043,1758040281205,-206.0,0.00030684,2]
[385789044,1758040281215,-400.0,0.00030684,6]
[385789045,1758040281225,-206.0,0.00030684,2]
[385789046,1758040281236,-206.0,0.00030684,2]
[385789047,1758040281246,-206.0,0.00030684,2]
[385789048,1758040281256,-206.0,0.00030684,2]
[385789049,1758040281267,-206.0,0.00030684,2]
[385789050,1758040281278,-400.0,0.00030684,6]
[385789051,1758040281290,-400.0,0.00030684,6]
[385789052,1758040281300,-400.0,0.00030684,6]
[385789053,1758040281309,-400.0,0.00030684,6]
[385789054,1758040281319,-5.60902639,0.00030684,2]
[385789055,1758040281433,-2141.80885,0.00030121,7]
[385789056,1758040281443,-241.575319,0.00030125,7]
[385789057,1758040281453,-200.39097361,0.00030684,2]
[385789058,1758040281463,-206.0,0.00030684,2]
[385789059,1758040281473,-206.0,0.00030684,2]
[385789060,1758040281483,-400.0,0.00030684,6]
[385789061,1758040281494,-400.0,0.00030684,6]
[385789062,1758040281503,-400.0,0.00030684,6]
[385789063,1758040281514,-400.0,0.00030684,6]
[385789064,1758040281525,-400.0,0.00030684,6]
[385789065,1758040281535,-400.0,0.00030684,6]
[385789066,1758040281545,-400.0,0.00030684,6]
[385789067,1758040281555,-400.0,0.00030684,6]
[385789068,1758040281565,-400.0,0.00030684,6]
[385789069,1758040281576,-400.0,0.00030684,6]
[385789070,1758040281587,-400.0,0.00030684,6]
[385789071,1758040281598,-403.75222845,0.00030684,6]
[385789072,1758040281608,-400.0,0.00030684,6]
[385789073,1758040281618,-407.01135463,0.00030684,6]
[385789074,1758040281629,-400.0,0.00030684,6]
[385789075,1758040281639,-400.0,0.00030684,6]
[385789076,1758040281649,-400.0,0.00030684,6]
[385789077,1758040281660,-405.5578765,0.00030684,6]
[385789078,1758040281670,-400.0,0.00030684,6]
[385789079,1758040281681,-400.0,0.00030684,6]
[385789080,1758040281691,-404.24764412,0.00030684,6]
[385789081,1758040281701,-405.00453367,0.00030684,6]
[385789082,1758040281712,-404.00620829,0.00030684,6]
[385789083,1758040281722,-400.0,0.00030684,6]
[385789084,1758040281732,-400.0,0.00030684,6]
[385789085,1758040281743,-400.0,0.00030684,6]
[385789086,1758040281753,-400.0,0.00030684,6]
[385789087,1758040281763,-407.23096773,0.00030684,6]
[385789088,1758040281774,-400.0,0.00030684,6]
[385789089,1758040281785,-400.0,0.00030684,6]
[385789090,1758040281796,-400.0,0.00030684,6]
[385789091,1758040281807,-397.87687415,0.00030684,6]
[385789092,1758040281818,-400.0,0.00030684,6]
[385789093,1758040281828,-400.0,0.00030684,6]
[385789094,1758040281838,-400.0,0.00030684,6]
[385789095,1758040281848,-400.0,0.00030684,6]
[385789096,1758040281859,-400.0,0.00030684,6]
[385789097,1758040281869,-400.0,0.00030684,6]
[385789098,1758040281879,-400.0,0.00030684,6]
[385789099,1758040281889,-400.0,0.00030684,6]
[385789100,1758040281899,-400.0,0.00030684,6]
[385789101,1758040281910,-400.0,0.00030684,6]
[385789102,1758040281920,-400.0,0.00030684,6]
[385789103,1758040281930,-400.0,0.00030684,6]
[385789104,1758040281941,-400.0,0.00030684,6]
[385789105,1758040281952,-400.0,0.00030684,6]
[385789106,1758040281964,-400.0,0.00030684,6]
[385789107,1758040281975,-400.0,0.00030684,6]
[385789108,1758040281987,-400.0,0.00030684,6]
[385789109,1758040281997,-400.0,0.00030684,6]
[385789110,1758040282008,-400.0,0.00030684,2]
[385789111,1758040282019,-412.35937788,0.00030684,6]
[385789112,1758040282028,-400.0,0.00030684,6]
[385789113,1758040282041,-662.98,0.00030684,6]
[385789114,1758040282051,-400.0,0.00030684,6]
[385789115,1758040282060,-400.0,0.00030684,6]
[385789116,1758040282071,-400.0,0.00030684,6]
[385789117,1758040282080,-400.0,0.00030684,6]
[385789118,1758040282091,-414.02835138,0.00030684,6]
[385789119,1758040282102,-403.10023712,0.00030684,6]
[385789120,1758040282112,-400.0,0.00030684,6]
[385789121,1758040282122,-400.0,0.00030684,6]
[385789122,1758040282132,-400.0,0.00030684,6]
[385789123,1758040282142,-400.0,0.00030684,6]
[385789124,1758040282152,-400.0,0.00030684,6]
[385789125,1758040282162,-401.33682981,0.00030684,6]
[385789126,1758040282171,-400.0,0.00030684,6]
[385789127,1758040282182,-400.0,0.00030684,6]
[385789128,1758040282191,-203.18736697,0.00030684,6]
[385789129,1758040282202,-400.0,0.00030684,6]
[385789130,1758040282212,-400.0,0.00030684,6]
[385789131,1758040282223,-400.0,0.00030684,6]
[385789132,1758040282233,-400.0,0.00030684,6]
[385789133,1758040282244,-400.0,0.00030684,6]
[385789134,1758040282254,-400.0,0.00030684,6]
[385789135,1758040282265,-400.0,0.00030684,6]
[385789136,1758040282275,-400.0,0.00030684,6]
[385789137,1758040282285,-400.0,0.00030684,6]
[385789138,1758040282296,-400.0,0.00030684,6]
[385789139,1758040282307,-400.0,0.00030684,6]
[385789140,1758040282318,-400.0,0.00030684,6]
[385789141,1758040282328,-400.0,0.00030684,6]
[385789142,1758040282338,-400.0,0.00030684,6]
[385789143,1758040282348,-400.0,0.00030684,6]
[385789144,1758040282358,-400.0,0.00030684,6]
[385789145,1758040282367,-400.0,0.00030684,6]
[385789146,1758040282377,-400.0,0.00030684,6]
[385789147,1758040282388,-400.0,0.00030684,6]
[385789148,1758040282398,-400.0,0.00030684,6]
[385789149,1758040282408,-400.0,0.00030684,6]
[385789150,1758040282418,-400.0,0.00030684,6]
[385789151,1758040282427,-400.0,0.00030684,6]
[385789152,1758040282437,-400.0,0.00030684,6]
[385789153,1758040282447,-405.63043466,0.00030684,6]
[385789154,1758040282458,-400.0,0.00030684,6]
[385789155,1758040282467,-400.0,0.00030684,6]
[385789156,1758040282477,-403.85,0.00030684,6]
[385789157,1758040282487,-400.0,0.00030684,6]
[385789158,1758040282498,-400.0,0.00030684,6]
[385789159,1758040282508,-400.0,0.00030684,6]
[385789160,1758040282517,-405.23691572,0.00030684,6]
[385789161,1758040282527,-405.23658956,0.00030684,6]
[385789162,1758040282537,-400.0,0.00030684,6]
[385789163,1758040282548,-400.0,0.00030684,6]
[385789164,1758040282558,-400.0,0.00030684,6]
[385789165,1758040282568,-400.0,0.00030684,6]
[385789166,1758040282578,-400.0,0.00030684,6]
[385789167,1758040282588,-400.0,0.00030684,6]
[385789168,1758040282599,-400.0,0.00030684,6]
[385789169,1758040282608,-611.12,0.00030684,6]
[385789170,1758040282618,-400.0,0.00030684,6]
[385789171,1758040282628,-400.0,0.00030684,6]
[385789172,1758040282637,-511.27,0.00030684,6]
[385789173,1758040282647,-400.0,0.00030684,6]
[385789174,1758040282657,-400.0,0.00030684,6]
[385789175,1758040282668,-400.0,0.00030684,6]
[385789176,1758040282681,-400.0,0.00030684,6]
[385789177,1758040282702,-400.0,0.00030684,6]
[385789178,1758040282712,-403.65993842,0.00030684,6]
[385789179,1758040282723,-400.0,0.00030684,6]
[385789180,1758040282733,-370.32960819,0.00030684,6]
[385789181,1758040282744,-552.2,0.00030684,6]
[385789182,1758040282754,-779.13,0.00030684,6]
[385789183,1758040282764,-400.0,0.00030684,6]
[385789184,1758040282774,-400.0,0.00030684,6]
[385789185,1758040282784,-460.46,0.00030684,6]
[385789186,1758040282794,-400.0,0.00030684,6]
[385789187,1758040282805,-400.0,0.00030684,6]
[385789188,1758040282816,-400.0,0.00030684,6]
[385789189,1758040282827,-400.0,0.00030684,6]
[385789190,1758040282837,-400.0,0.00030684,6]
[385789191,1758040282847,-400.0,0.00030684,6]
[385789192,1758040282857,-400.0,0.00030684,6]
[385789193,1758040282867,-402.48929727,0.00030684,6]
[385789194,1758040282876,-400.0,0.00030684,6]
[385789195,1758040282886,-400.0,0.00030684,6]
[385789196,1758040282897,-552.0,0.00030684,6]
[385789197,1758040282907,-400.0,0.00030684,6]
[385789198,1758040282918,-400.0,0.00030684,6]
[385789199,1758040282928,-400.0,0.00030684,6]
[385789200,1758040282938,-400.0,0.00030684,6]
[385789201,1758040282947,-400.0,0.00030684,6]
[385789202,1758040282957,-400.0,0.00030684,6]
[385789203,1758040282971,-402.53775114,0.00030684,6]
[385789204,1758040282981,-400.0,0.00030684,6]
[385789205,1758040282990,-186.40521269,0.00030684,6]
[385789206,1758040283001,-400.0,0.00030684,6]
[385789207,1758040283011,-425.6,0.00030684,6]
[385789208,1758040283020,-400.0,0.00030684,6]
[385789209,1758040283030,-486.72063128,0.00030684,6]
[385789210,1758040283041,-400.0,0.00030684,6]
[385789211,1758040283051,-400.0,0.00030684,6]
[385789212,1758040283061,-400.0,0.00030684,6]
[385789213,1758040283071,-400.0,0.00030684,6]
[385789214,1758040283081,-400.0,0.00030684,6]
[385789215,1758040283091,-400.0,0.00030684,6]
[385789216,1758040283100,-400.0,0.00030684,6]
[385789217,1758040283110,-400.0,0.00030684,6]
[385789218,1758040283119,-400.0,0.00030684,6]
[385789219,1758040283129,-400.0,0.00030684,6]
[385789220,1758040283139,-400.0,0.00030684,6]
[385789221,1758040283149,-400.0,0.00030684,6]
[385789222,1758040283159,-400.0,0.00030684,6]
[385789223,1758040283168,-400.0,0.00030684,6]
[385789224,1758040283178,-400.0,0.00030684,6]
[385789225,1758040283188,-400.0,0.00030684,6]
[385789226,1758040283198,-255.93231847,0.00030684,6]
[385789227,1758040283208,-400.0,0.00030684,6]
[385789228,1758040283218,-400.0,0.00030684,6]
[385789229,1758040283228,-400.0,0.00030684,6]
[385789230,1758040283239,-402.32109549,0.00030684,6]
[385789231,1758040283249,-400.0,0.00030684,6]
[385789232,1758040283259,-400.0,0.00030684,6]
[385789233,1758040283269,-400.0,0.00030684,6]
[385789234,1758040283279,-400.0,0.00030684,6]
[385789235,1758040283289,-400.0,0.00030684,6]
[385789236,1758040283299,-400.0,0.00030684,6]
[385789237,1758040283308,-403.18071155,0.00030684,6]
[385789238,1758040283318,-400.0,0.00030684,6]
[385789239,1758040283328,-400.0,0.00030684,6]
[385789240,1758040283338,-400.0,0.00030684,6]
[385789241,1758040283348,-400.0,0.00030684,6]
[385789242,1758040283358,-400.0,0.00030684,6]
[385789243,1758040283369,-400.0,0.00030684,6]
[385789244,1758040283379,-402.67227504,0.00030684,6]
[385789245,1758040283388,-400.0,0.00030684,6]
[385789246,1758040283398,-400.0,0.00030684,6]
[385789247,1758040283651,-400.0,0.00030684,6]
[385789248,1758040283713,-400.0,0.00030684,6]
[385789249,1758040283723,-400.0,0.00030684,6]
[385789250,1758040283732,-400.0,0.00030684,6]
[385789251,1758040283742,-400.0,0.00030684,6]
[385789252,1758040283752,-400.0,0.00030684,6]
[385789253,1758040283762,-400.0,0.00030684,6]
[385789254,1758040283771,-400.0,0.00030684,6]
[385789255,1758040283780,-400.0,0.00030684,6]
[385789256,1758040283790,-969.09,0.00030684,6]
[385789257,1758040283800,-400.0,0.00030684,6]
[385789258,1758040283809,-261.80824189,0.00030684,6]
[385789259,1758040283820,-561.5,0.00030684,6]
[385789260,1758040283830,-400.0,0.00030684,6]
[385789261,1758040283839,-400.0,0.00030684,6]
[385789262,1758040283848,-1041.71,0.00030684,6]
[385789263,1758040283859,-400.0,0.00030684,6]
[385789264,1758040283869,-951.63,0.00030684,6]
[385789265,1758040283878,-400.0,0.00030684,6]
[385789266,1758040283888,-400.0,0.00030684,6]
[385789267,1758040283898,-400.0,0.00030684,6]
[385789268,1758040283908,-400.0,0.00030684,6]
[385789269,1758040283918,-400.0,0.00030684,6]
[385789270,1758040283927,-400.0,0.00030684,6]
[385789271,1758040283937,-400.0,0.00030684,6]
[385789272,1758040283946,-400.0,0.00030684,6]
[385789273,1758040283956,-400.0,0.00030684,6]
[385789274,1758040283970,-400.0,0.00030684,6]
[385789275,1758040283979,-400.0,0.00030684,6]
[385789276,1758040283989,-400.0,0.00030684,6]
[385789277,1758040283999,-400.0,0.00030684,6]
[385789278,1758040284009,-403.32587077,0.00030684,6]
[385789279,1758040284019,-848.38,0.00030684,6]
[385789280,1758040284028,-417.07,0.00030684,6]
[385789281,1758040284039,-400.0,0.00030684,6]
[385789282,1758040284049,-400.0,0.00030684,6]
[385789283,1758040284059,-400.0,0.00030684,6]
[385789284,1758040284069,-400.0,0.00030684,6]
[385789285,1758040284080,-400.0,0.00030684,6]
[385789286,1758040284090,-400.0,0.00030684,6]
[385789287,1758040284100,-592.9,0.00030684,6]
[385789288,1758040284110,-400.0,0.00030684,6]
[385789289,1758040284119,-400.0,0.00030684,6]
[385789290,1758040284129,-400.0,0.00030684,6]
[385789291,1758040284139,-400.0,0.00030684,6]
[385789292,1758040284148,-717.14,0.00030684,6]
[385789293,1758040284162,-400.0,0.00030684,6]
[385789294,1758040284172,-400.0,0.00030684,6]
[385789295,1758040284182,-400.0,0.00030684,6]
[385789296,1758040284192,-400.0,0.00030684,6]
[385789297,1758040284203,-758.12,0.00030684,6]
[385789298,1758040284215,-400.0,0.00030684,6]
[385789299,1758040284226,-400.0,0.00030684,6]
[385789300,1758040284236,-400.0,0.00030684,6]
[385789301,1758040284247,-400.0,0.00030684,6]
[385789302,1758040284258,-400.0,0.00030684,6]
[385789303,1758040284268,-404.50855473,0.00030684,6]
[385789304,1758040284278,-400.0,0.00030684,6]
[385789305,1758040284287,-400.0,0.00030684,6]
[385789306,1758040284297,-232.32894822,0.00030684,6]
[385789307,1758040284307,-400.0,0.00030684,6]
[385789308,1758040284316,-464.96,0.00030684,6]
[385789309,1758040284326,-400.0,0.00030684,6]
[385789310,1758040284335,-400.0,0.00030684,6]
[385789311,1758040284345,-508.497149,0.00030684,6]
[385789312,1758040284356,-1067.42,0.00030684,6]
[385789313,1758040284365,-400.0,0.00030684,6]
[385789314,1758040284375,-400.0,0.00030684,6]
[385789315,1758040284384,-400.0,0.00030684,6]
[385789316,1758040284394,-400.0,0.00030684,6]
[385789317,1758040284404,-400.0,0.00030684,6]
[385789318,1758040284414,-400.0,0.00030684,6]
[385789319,1758040284423,-400.0,0.00030684,6]
[385789320,1758040284432,-400.0,0.00030684,6]
[385789321,1758040284443,-400.0,0.00030684,6]
[385789322,1758040284453,-407.19528805,0.00030684,6]
[385789323,1758040284462,-400.0,0.00030684,6]
[385789324,1758040284472,-400.0,0.00030684,6]
[385789325,1758040284481,-400.0,0.00030684,6]
[385789326,1758040284492,-400.0,0.00030684,6]
[385789327,1758040284501,-400.0,0.00030684,6]
[385789328,1758040284511,-400.0,0.00030684,6]
[385789329,1758040284520,-400.0,0.00030684,6]
[385789330,1758040284530,-206.97817454,0.00030684,6]
[385789343,1758040840862,300.0,0.0003,120]
[385789364,1758041432158,-1200.0,0.00024545,2]
[385789365,1758041432168,-300.0,0.00024545,2]
[385789366,1758041432177,-1166.0,0.00024546,2]
[385789367,1758041432427,-19309.0230133,0.00024546,2]
[385789368,1758041432436,-2000.0,0.00024716,3]
[385789369,1758041432446,-500.0,0.00024885,2]
[385789370,1758041432455,-151.0,0.00024885,2]
[385789371,1758041432465,-500.0,0.00024885,2]
[385789372,1758041432474,-172.81685371,0.00024899,2]
[385789373,1758041432483,-500.0,0.00024899,2]
[385789374,1758041432493,-500.0,0.00024899,2]
[385789375,1758041432502,-500.0,0.00024899,2]
[385789376,1758041432511,-500.0,0.00024899,2]
[385789377,1758041432521,-250.70806242,0.00024899,2]
[385789378,1758041432530,-24173.13162775,0.000249,2]
[385789379,1758041432539,-203.6,0.00025151,2]
[385789380,1758041432548,-203.6,0.00025654,2]
[385789381,1758041432558,-203.6,0.00026157,2]
[385789382,1758041432567,-203.6,0.0002666,2]
[385789383,1758041432577,-2000.0,0.00027001,3]
[385789384,1758041432586,-553.0,0.00027137,2]
[385789385,1758041432597,-203.6,0.00027163,2]
[385789386,1758041432606,-1720.11,0.000274,2]
[385789387,1758041432616,-500.0,0.00027425,10]
[385789388,1758041432626,-500.0,0.00027425,10]
[385789389,1758041432635,-500.0,0.00027425,10]
[385789390,1758041432644,-500.0,0.00027425,10]
[385789391,1758041432653,-500.0,0.00027425,10]
[385789392,1758041432663,-500.0,0.00027425,10]
[385789393,1758041432672,-500.0,0.00027425,10]
[385789394,1758041432681,-500.0,0.00027425,10]
[385789395,1758041432690,-4225.0,0.00027543,2]
[385789396,1758041432699,-150.0,0.00027592,7]
[385789397,1758041432710,-150.0,0.00027592,7]
[385789398,1758041432719,-150.0,0.00027592,7]
[385789399,1758041432728,-203.6,0.00027666,3]
[385789400,1758041432738,-250.0,0.00027753,2]
[385789401,1758041432749,-200.0,0.00027765,2]
[385789402,1758041432758,-173.37,0.00027982,2]
[385789403,1758041432768,-162.31,0.00028151,30]
[385789404,1758041432777,-203.6,0.00028169,3]
[385789405,1758041432786,-150.0,0.00028186,7]
[385789406,1758041432796,-257.91778498,0.00028245,2]
[385789407,1758041432806,-151.0,0.00028245,2]
[385789408,1758041432984,-288.71650348,0.00028245,2]
[385789409,1758041433017,-151.0,0.00028245,2]
[385789410,1758041433027,-500.0,0.00028245,2]
[385789411,1758041433037,-1000.0,0.00028245,2]
[385789412,1758041433047,-160.0,0.00028245,2]
[385789413,1758041433057,-500.0,0.00028245,2]
[385789414,1758041433067,-8882.6885148,0.00028245,2]
[385789415,1758041433077,-500.0,0.00028245,2]
[385789416,1758041433086,-250.0,0.00028245,2]
[385789417,1758041433095,-151.0,0.00028245,2]
[385789418,1758041433106,-1000.0,0.00028245,2]
[385789419,1758041433115,-500.0,0.00028245,2]
[385789420,1758041433124,-500.0,0.00028245,2]
[385789421,1758041433134,-670.58624095,0.00028245,2]
[385789422,1758041433144,-151.0,0.00028245,2]
[385789423,1758041433153,-272.02,0.00028264,2]
[385789424,1758041433162,-666.0,0.0002829,3]
[385789425,1758041433172,-180.99,0.00028317,2]
[385789426,1758041433181,-23279.03,0.00028444,2]
[385789427,1758041433191,-203.6,0.00028672,3]
[385789428,1758041433201,-2000.0,0.00028767,2]
[385789429,1758041433210,-2000.0,0.00028767,2]
[385789430,1758041433219,-2000.0,0.00028767,2]
[385789431,1758041433228,-2000.0,0.00028767,2]
[385789432,1758041433239,-2000.0,0.00028767,2]
[385789433,1758041433249,-2000.0,0.00028767,2]
[385789434,1758041433260,-2000.0,0.00028767,2]
[385789435,1758041433270,-2000.0,0.00028767,2]
[385789436,1758041433282,-2000.0,0.00028767,2]
[385789437,1758041433292,-151.0,0.00028793,2]
[385789438,1758041433302,-504.0,0.00029115,2]
[385789439,1758041433312,-203.6,0.00029175,3]
[385789440,1758041433322,-1850.79267494,0.00029178,2]
[385789441,1758041433332,-176.18873177,0.00029277,2]
[385789442,1758041433341,-42243.83582644,0.00029278,7]
[385789443,1758041433355,-9769.8732372,0.00029278,7]
[385789444,1758041433366,-21913.40181576,0.00029278,7]
[385789445,1758041433376,-13947.69065932,0.00029278,7]
[385789446,1758041433387,-874.96392438,0.00029278,7]
[385789447,1758041433397,-151.0,0.00029341,2]
[385789448,1758041433406,-354.0,0.000294,2]
[385789449,1758041433417,-1850.79267488,0.00029456,2]
[385789450,1758041433426,-154.80343052,0.00029479,2]
[385789451,1758041433435,-2000.0,0.00029533,2]
[385789452,1758041433445,-1040.65752032,0.00029533,5]
[385789453,1758041433455,-1160.3549129,0.00029533,5]
[385789454,1758041433464,-267.46074303,0.00029614,2]
[385789455,1758041433473,-203.6,0.00029678,4]
[385789456,1758041433482,-2000.0,0.00029678,2]
[385789457,1758041433492,-2000.0,0.00029678,2]
[385789458,1758041433502,-2000.0,0.00029678,2]
[385789459,1758041433511,-2000.0,0.00029678,2]
[385789460,1758041433521,-2000.0,0.00029678,2]
[385789461,1758041433531,-2000.0,0.00029678,2]
[385789462,1758041433540,-2012.0,0.00029678,2]
[385789463,1758041433550,-1850.79267488,0.00029734,2]
[385789464,1758041433560,-800.0,0.000298,10]
[385789465,1758041433569,-294.98,0.00029836,2]
[385789466,1758041433579,-1700.0,0.000299,10]
[385789467,1758041433588,-165.4,0.00029918,24]